bitfinex-derivatives/quotes_BTCF0:USTF0_20250809
["timestamp","ask_amount","ask_price","bid_price","bid_amount"]
[1754771831935,0.4558124,116840.0,116830.0,1.61503923]
[1754771832432,0.4558124,116840.0,116830.0,1.4614111]
[1754771834444,0.4799524,116840.0,116830.0,1.4614111]
[1754771834744,0.4799524,116840.0,116830.0,0.7398111]
[1754771835044,0.4799524,116840.0,116830.0,1.1006111]
[1754771835245,0.4799524,116840.0,116830.0,0.7681187]
[1754771835443,0.4799524,116840.0,116830.0,1.1006111]
[1754771835845,0.4799524,116840.0,116830.0,1.25423923]
[1754771836047,0.4799524,116840.0,116830.0,0.89343923]
[1754771836246,0.4799524,116840.0,116830.0,1.25423923]
[1754771837747,0.4799524,116840.0,116830.0,0.89343923]
[1754771838048,0.4799524,116840.0,116830.0,1.25423923]
[1754771839349,0.4799524,116840.0,116830.0,0.89343923]
[1754771839546,0.4799524,116840.0,116830.0,1.25423923]
[1754771842452,0.14746,116840.0,116830.0,1.25423923]
[1754771842951,0.4799524,116840.0,116830.0,1.25423923]
[1754771843753,0.4799524,116840.0,116830.0,1.1006111]
[1754771844553,0.4799524,116840.0,116830.0,0.92174683]
[1754771844756,0.4799524,116840.0,116830.0,1.25423923]
[1754771849256,0.4799524,116840.0,116830.0,1.1006111]
[1754771850165,0.4799524,116840.0,116830.0,1.25423923]
[1754771852962,0.4799524,116840.0,116830.0,0.92174683]
[1754771853167,0.8124448,116840.0,116830.0,1.25423923]
[1754771855757,0.5655165,116840.0,116830.0,1.25423923]
[1754771856257,0.8980089,116840.0,116830.0,1.25423923]
[1754771856459,0.8980089,116840.0,116830.0,0.7681187]
[1754771856657,0.8980089,116840.0,116830.0,1.1006111]
[1754771857164,0.8980089,116840.0,116830.0,0.7681187]
[1754771857669,0.8980089,116840.0,116830.0,0.4073187]
[1754771857859,0.8980089,116840.0,116830.0,1.1006111]
[1754771859666,0.8980089,116840.0,116830.0,0.4073187]
[1754771859862,0.8980089,116840.0,116830.0,1.1006111]
[1754771861266,0.8980089,116840.0,116830.0,0.7665187]
[1754771862463,0.2330241,116840.0,116830.0,1.0990111]
[1754771862766,0.8980089,116840.0,116830.0,1.0990111]
[1754771862960,0.898009,116840.0,116830.0,1.0990111]
[1754771863157,0.5655166,116840.0,116830.0,1.0990111]
[1754771864672,0.5655166,116840.0,116830.0,0.7665187]
[1754771864873,0.5655166,116840.0,116830.0,1.0990111]
[1754771865173,0.2330242,116840.0,116830.0,1.0990111]
[1754771865374,0.5655166,116840.0,116830.0,1.0990111]
[1754771865572,0.2330242,116840.0,116830.0,1.0990111]
[1754771865778,0.5655166,116840.0,116830.0,1.0990111]
[1754771866074,0.5655166,116840.0,116830.0,0.7382111]
[1754771866275,0.5655166,116840.0,116830.0,0.7665187]
[1754771866473,0.5655166,116840.0,116830.0,1.0990111]
[1754771870475,0.14746,116840.0,116830.0,1.0990111]
[1754771870674,0.5655166,116840.0,116830.0,1.0990111]
[1754771871080,0.14746,116840.0,116830.0,1.0990111]
[1754771871376,0.4799524,116840.0,116830.0,1.0990111]
[1754771871564,0.14746,116840.0,116830.0,1.0990111]
[1754771871765,0.4799524,116840.0,116830.0,1.0990111]
[1754771873777,0.14746,116840.0,116830.0,1.0990111]
[1754771874079,0.4799524,116840.0,116830.0,1.0990111]
[1754771875277,0.14746,116840.0,116830.0,1.0990111]
[1754771875479,0.4799524,116840.0,116830.0,1.0990111]
[1754771876073,0.002,116840.0,116830.0,1.4315035]
[1754771876372,0.002,116840.0,116830.0,1.63220229]
[1754771876571,0.6476544,116870.0,116860.0,0.1429695]
[1754771876774,0.315162,116870.0,116860.0,1.7354719]
[1754771876972,0.6476544,116870.0,116860.0,1.7354719]
[1754771877678,0.6516544,116870.0,116860.0,1.7354719]
[1754771877880,0.6566544,116870.0,116860.0,1.7354719]
[1754771878277,0.6526544,116870.0,116860.0,1.4029795]
[1754771878578,0.6536544,116870.0,116860.0,1.7354719]
[1754771878781,0.6536544,116870.0,116860.0,1.80235596]
[1754771879978,0.568108,116870.0,116860.0,1.80235596]
[1754771881584,0.568108,116870.0,116860.0,1.81098533]
[1754771884275,0.3384924,116870.0,116860.0,2.14347773]
[1754771884480,0.3690924,116870.0,116860.0,2.14347773]
[1754771884781,0.3690924,116870.0,116860.0,1.81098533]
[1754771885576,0.4600824,116870.0,116860.0,1.81098533]
[1754771885778,0.4820924,116870.0,116860.0,1.81098533]
[1754771887086,0.5676348,116870.0,116860.0,1.81098533]
[1754771887988,0.5676348,116870.0,116860.0,1.47849293]
[1754771888185,0.2351424,116870.0,116860.0,1.81098533]
[1754771888385,0.5676348,116870.0,116860.0,1.81098533]
[1754771889187,0.4820924,116870.0,116860.0,1.81098533]
[1754771889582,0.4820924,116870.0,116860.0,1.91817272]
[1754771890189,0.4820924,116870.0,116860.0,1.55737272]
[1754771890389,0.4820924,116870.0,116860.0,1.91817272]
[1754771890390,0.5676349,116870.0,116860.0,1.91817272]
[1754771892481,0.5676349,116870.0,116860.0,1.58568032]
[1754771892682,0.2351425,116870.0,116860.0,1.91817272]
[1754771892878,0.5676349,116870.0,116860.0,1.91817272]
[1754771893591,0.5676349,116870.0,116860.0,1.58568032]
[1754771893994,0.5676349,116870.0,116860.0,1.91817272]
[1754771894492,0.5676349,116870.0,116860.0,1.81098533]
[1754771895994,0.5676349,116870.0,116860.0,1.45018533]
[1754771896189,0.5676349,116870.0,116860.0,1.47849293]
[1754771896497,0.5676349,116870.0,116860.0,1.81098533]
[1754771897096,0.5676349,116870.0,116860.0,1.47849293]
[1754771897298,0.4820924,116870.0,116860.0,1.81098533]
[1754771898995,0.3743824,116870.0,116860.0,1.81098533]
[1754771899203,0.3384924,116870.0,116860.0,2.14347773]
[1754771899496,0.006,116870.0,116860.0,2.14347773]
[1754771899694,0.6325714,116870.0,116860.0,1.81098533]
[1754771899889,0.8582238,116870.0,116860.0,1.81098533]
[1754771900089,0.8582238,116870.0,116860.0,1.91817272]
[1754771900294,0.7496014,116870.0,116860.0,1.91817272]
[1754771900500,0.7175814,116870.0,116860.0,1.81098533]
[1754771900696,0.300079,116870.0,116860.0,2.14347773]
[1754771901000,0.6325714,116870.0,116860.0,2.14347773]
[1754771901994,0.300079,116870.0,116860.0,2.14347773]
[1754771902200,0.6325714,116870.0,116860.0,2.14347773]
[1754771903897,0.329369,116870.0,116860.0,2.14347773]
[1754771904090,0.6618614,116870.0,116860.0,2.14347773]
[1754771904294,0.6618614,116870.0,116860.0,2.25078233]
[1754771906207,0.329369,116870.0,116860.0,2.25078233]
[1754771906394,0.6618614,116870.0,116860.0,2.25078233]
[1754771907304,0.6618614,116870.0,116860.0,1.58579753]
[1754771907492,0.6618614,116870.0,116860.0,2.25078233]
[1754771908005,0.6618614,116870.0,116860.0,2.14347773]
[1754771909105,0.329369,116870.0,116860.0,2.14347773]
[1754771909306,0.6618614,116870.0,116860.0,2.14347773]
[1754771909605,0.329369,116870.0,116860.0,2.14347773]
[1754771909806,0.6618614,116870.0,116860.0,2.14347773]
[1754771910707,0.006,116870.0,116860.0,2.47597013]
[1754771911206,0.006,116870.0,116860.0,2.62944381]
[1754771911806,0.005,116870.0,116860.0,2.62944381]
[1754771912009,0.004,116870.0,116860.0,2.14347773]
[1754771912304,0.004,116870.0,116860.0,2.47597013]
[1754771912704,0.004,116870.0,116860.0,2.14347773]
[1754771912902,0.004,116870.0,116860.0,2.47597013]
[1754771913105,0.004,116870.0,116860.0,2.62921142]
[1754771913300,0.002,116870.0,116860.0,2.62921142]
[1754771913902,0.0001,116880.0,116860.0,2.71393612]
[1754771914110,0.0001,116880.0,116870.0,1.2546773]
[1754771915207,0.0031,116880.0,116870.0,0.9221849]
[1754771915608,0.0031,116880.0,116870.0,1.2546773]
[1754771916720,0.0031,116880.0,116870.0,0.9221849]
[1754771917211,0.0031,116880.0,116870.0,1.2546773]
[1754771917616,0.0031,116880.0,116870.0,0.9221849]
[1754771918112,0.0031,116880.0,116870.0,0.5896925]
[1754771918412,0.3630624,116880.0,116870.0,0.9221849]
[1754771918807,0.03057,116880.0,116870.0,0.9221849]
[1754771919208,0.3630624,116880.0,116870.0,0.5896925]
[1754771919608,0.3630624,116880.0,116870.0,0.9221849]
[1754771920218,0.03057,116880.0,116870.0,0.9221849]
[1754771920517,0.03057,116880.0,116870.0,1.02930188]
[1754771920717,0.03057,116880.0,116870.0,0.69680948]
[1754771920914,0.4753124,116880.0,116870.0,0.69680948]
[1754771921118,0.4753124,116880.0,116870.0,0.5896925]
[1754771921311,0.4753124,116880.0,116870.0,0.9221849]
[1754771922019,0.4753124,116880.0,116870.0,1.02929746]
[1754771923520,0.4753124,116880.0,116870.0,0.9221849]
[1754771924223,0.4753124,116880.0,116870.0,1.02929022]
[1754771924723,0.14282,116880.0,116870.0,0.9221849]
[1754771924917,0.14282,116880.0,116870.0,0.69680018]
[1754771925222,0.14282,116880.0,116870.0,1.02929217]
[1754771925624,0.14282,116880.0,116870.0,0.9221849]
[1754771926120,0.14282,116880.0,116870.0,0.5896925]
[1754771926421,0.14282,116880.0,116870.0,0.9221849]
[1754771929724,0.4753124,116880.0,116870.0,0.9221849]
[1754771930021,0.4753124,116880.0,116870.0,1.07542619]
[1754771930622,0.14282,116880.0,116870.0,1.07542619]
[1754771932324,0.14282,116880.0,116870.0,0.9221849]
[1754771932725,0.11971,116880.0,116870.0,0.9221849]
[1754771933516,0.11971,116880.0,116870.0,0.5896925]
[1754771933712,0.11971,116880.0,116870.0,0.9221849]
[1754771934217,0.06436,116880.0,116870.0,0.9221849]
[1754771934822,0.06436,116880.0,116870.0,0.5896925]
[1754771935023,0.06436,116880.0,116870.0,0.9221849]
[1754771936423,0.06436,116880.0,116870.0,1.07542619]
[1754771937321,0.06436,116880.0,116870.0,0.9221849]
[1754771940421,0.06436,116880.0,116870.0,1.07542619]
[1754771942228,0.06436,116880.0,116870.0,0.9221849]
[1754771942920,0.09855,116880.0,116870.0,0.9221849]
[1754771943421,0.12166,116880.0,116870.0,0.9221849]
[1754771944431,0.4541524,116880.0,116870.0,1.02954162]
[1754771944821,0.4541524,116880.0,116870.0,0.9221849]
[1754771945023,0.4541524,116880.0,116870.0,1.0295418]
[1754771945525,0.4753124,116880.0,116870.0,1.0295418]
[1754771946229,0.4753124,116880.0,116870.0,0.9221849]
[1754771946830,0.4753124,116880.0,116870.0,1.02954155]
[1754771947329,0.11971,116880.0,116870.0,0.9221849]
[1754771947632,0.06436,116880.0,116870.0,0.9221849]
[1754771949434,0.06436,116880.0,116870.0,1.07542619]
[1754771949827,0.06436,116880.0,116870.0,0.74293379]
[1754771950133,0.0031,116880.0,116870.0,1.40791859]
[1754771950532,0.297179,116880.0,116870.0,1.40791859]
[1754771950932,0.297179,116880.0,116870.0,1.2546773]
[1754771953430,0.297179,116880.0,116870.0,1.40791859]
[1754771954133,0.297179,116880.0,116870.0,0.74293379]
[1754771954334,0.297179,116880.0,116870.0,1.2546773]
[1754771954529,0.0031,116880.0,116870.0,1.2546773]
[1754771955833,0.003,116880.0,116870.0,1.2546773]
[1754771956232,0.003,116880.0,116870.0,0.5896925]
[1754771959030,0.003,116880.0,116870.0,0.74293379]
[1754771959928,0.003,116880.0,116870.0,0.5896925]
[1754771961429,0.003,116880.0,116870.0,0.74293379]
[1754771962236,0.003,116880.0,116870.0,1.10373379]
[1754771963834,0.003,116880.0,116870.0,1.05768776]
[1754771965440,0.003,116880.0,116870.0,0.9504925]
[1754771968230,0.003,116880.0,116870.0,1.05767227]
[1754771969444,0.003,116880.0,116870.0,0.9504925]
[1754771974345,0.003,116880.0,116870.0,1.10373379]
[1754771975044,0.003,116880.0,116870.0,0.9504925]
[1754771978347,0.003,116880.0,116870.0,1.10364611]
[1754771979252,0.03136,116880.0,116870.0,1.10364611]
[1754771979453,0.03136,116880.0,116870.0,1.76863091]
[1754771984659,0.03136,116880.0,116870.0,1.6154773]
[1754771987661,0.03136,116880.0,116870.0,0.9504925]
[1754771987856,0.03136,116880.0,116870.0,1.6154773]
[1754771989064,0.03136,116880.0,116870.0,1.76880241]
[1754771990764,0.03136,116880.0,116870.0,1.10381761]
[1754771990964,0.03136,116880.0,116870.0,1.76880241]
[1754771991663,0.03136,116880.0,116870.0,1.6154773]
[1754771992564,0.03136,116880.0,116870.0,1.72280732]
[1754771994273,0.03136,116880.0,116870.0,1.6154773]
[1754771998267,0.03136,116880.0,116870.0,1.76880906]
[1754771999167,0.03136,116880.0,116870.0,1.6154773]
[1754772006470,0.03136,116880.0,116870.0,1.76880906]
[1754772007370,0.03136,116880.0,116870.0,1.6154773]
[1754772007564,0.03136,116880.0,116870.0,1.76880274]
[1754772010174,0.03136,116880.0,116870.0,1.10381794]
[1754772010373,0.03136,116880.0,116870.0,1.76880274]
[1754772010570,0.03136,116880.0,116870.0,1.10381794]
[1754772010768,0.03136,116880.0,116870.0,1.76880274]
[1754772011577,0.03136,116880.0,116870.0,1.6154773]
[1754772013876,0.03136,116880.0,116870.0,1.76880218]
[1754772014776,0.03136,116880.0,116870.0,1.6154773]
[1754772016983,0.03136,116880.0,116870.0,0.8938773]
[1754772017172,0.03136,116880.0,116870.0,1.6154773]
[1754772017368,0.03136,116880.0,116870.0,1.81617609]
[1754772019180,0.00584588,116880.0,116870.0,1.81617609]
[1754772019576,0.05571,116890.0,116870.0,2.14057745]
[1754772019880,0.10885,116890.0,116880.0,2.0019599]
[1754772020073,0.402929,116890.0,116880.0,2.0019599]
[1754772020273,0.10885,116890.0,116880.0,2.0019599]
[1754772021177,0.13553,116890.0,116880.0,2.0019599]
[1754772021878,0.13653,116890.0,116880.0,2.0019599]
[1754772022273,0.13753,116890.0,116880.0,2.0019599]
[1754772023181,0.002,116890.0,116880.0,2.44177219]
[1754772023581,0.02668,116910.0,116900.0,0.5638453]
[1754772023776,0.0771,116910.0,116900.0,2.2771453]
[1754772024084,0.09096,116910.0,116900.0,2.38441337]
[1754772024283,0.11354,116910.0,116900.0,2.2771453]
[1754772024783,0.11654,116910.0,116900.0,2.2771453]
[1754772024983,0.4708424,116910.0,116900.0,2.2771453]
[1754772025285,0.4738424,116910.0,116900.0,2.2771453]
[1754772025884,0.14135,116910.0,116900.0,2.2771453]
[1754772027783,0.4738424,116910.0,116900.0,2.2771453]
[1754772028184,0.14135,116910.0,116900.0,2.2771453]
[1754772028386,0.4738424,116910.0,116900.0,2.2771453]
[1754772029684,0.14135,116910.0,116900.0,2.2771453]
[1754772029884,0.4738424,116910.0,116900.0,2.2771453]
[1754772031987,0.14135,116910.0,116900.0,2.2771453]
[1754772032187,0.4738424,116910.0,116900.0,2.2771453]
[1754772033083,0.14135,116910.0,116900.0,2.2771453]
[1754772033985,0.08582,116910.0,116900.0,2.2771453]
[1754772034185,0.379899,116910.0,116900.0,2.2771453]
[1754772034384,0.326759,116910.0,116900.0,2.2771453]
[1754772035191,0.325759,116910.0,116900.0,2.2788153]
[1754772035378,0.324759,116910.0,116900.0,2.2788153]
[1754772035896,0.298079,116910.0,116900.0,2.3221453]
[1754772036194,0.10801095,117040.0,116960.0,0.5131833]
[1754772036496,0.47787054,117090.0,117070.0,0.2561807]
[1754772036800,0.45502,117080.0,117070.0,0.5315844]
[1754772036985,0.02736,117080.0,117070.0,1.1965692]
[1754772037186,0.45502,117080.0,117070.0,0.8640768]
[1754772037393,0.3324924,117110.0,117100.0,0.1707436]
[1754772037394,0.11355,117110.0,117100.0,0.1707436]
[1754772037587,0.4460424,117110.0,117100.0,0.1707436]
[1754772037793,0.5614764,117110.0,117090.0,0.9494375]
[1754772037990,0.2850961,117100.0,117090.0,0.2561451]
[1754772038187,0.9500809,117100.0,117090.0,0.32511058]
[1754772038386,0.6175885,117100.0,117090.0,0.32511058]
[1754772038689,0.2850961,117100.0,117090.0,0.32511058]
[1754772038891,0.62527558,117100.0,117090.0,0.2561451]
[1754772039095,1.06666011,117100.0,117090.0,0.2561451]
[1754772039390,0.65763558,117100.0,117090.0,0.2561451]
[1754772039583,0.65763558,117100.0,117090.0,0.30126788]
[1754772039787,0.3174561,117100.0,117090.0,0.30126788]
[1754772040191,0.3174561,117100.0,117090.0,0.31980788]
[1754772040392,0.3174561,117100.0,117090.0,0.66550887]
[1754772040695,0.39266,117120.0,117110.0,0.0853671]
[1754772040890,0.47435,117120.0,117110.0,0.19368113]
[1754772041197,0.47435,117120.0,117110.0,0.17514113]
[1754772041495,0.47435,117120.0,117110.0,0.0853671]
[1754772041496,1.34514763,117120.0,117110.0,0.0853671]
[1754772041887,0.08271,117110.0,117100.0,0.1707439]
[1754772042087,1.00496815,117110.0,117100.0,0.2561175]
[1754772042287,1.17575215,117110.0,117100.0,0.2561175]
[1754772042486,0.14091,117110.0,117100.0,0.2561175]
[1754772042695,0.0560662,117110.0,117100.0,0.7518675]
[1754772042895,0.0527162,117110.0,117100.0,0.7518675]
[1754772043092,0.0509449,117110.0,117100.0,0.7518675]
[1754772043393,0.3608,117140.0,117130.0,0.0853526]
[1754772043597,0.3608,117140.0,117130.0,0.1707052]
[1754772043598,0.419,117140.0,117130.0,0.1707052]
[1754772043798,1.09300215,117140.0,117130.0,0.1707052]
[1754772044400,0.589744,117140.0,117130.0,0.1707052]
[1754772044593,1.09300215,117140.0,117130.0,0.1707052]
[1754772044788,1.17101215,117140.0,117130.0,0.1707052]
[1754772044994,1.17201215,117140.0,117130.0,0.1707052]
[1754772045291,1.47201215,117140.0,117130.0,0.1707052]
[1754772045500,0.968754,117140.0,117130.0,0.1707052]
[1754772045998,1.47201215,117140.0,117130.0,0.1707052]
[1754772046693,1.55735745,117140.0,117130.0,0.1707052]
[1754772047204,1.55735745,117140.0,117130.0,0.0853526]
[1754772048993,0.07701,117130.0,117120.0,0.198878]
[1754772049194,0.99926815,117130.0,117120.0,0.170718]
[1754772049402,1.08462075,117130.0,117120.0,0.170718]
[1754772049697,1.08462075,117130.0,117120.0,0.085359]
[1754772049897,0.2205699,117120.0,117110.0,0.0853639]
[1754772050096,0.2205772,117110.0,117100.0,0.2842729]
[1754772050396,1.08463535,117110.0,117100.0,0.1135301]
[1754772050594,1.08463535,117110.0,117100.0,0.0853701]
[1754772050988,1.08463535,117110.0,117090.0,0.2842958]
[1754772050989,0.2027945,117100.0,117090.0,0.2842958]
[1754772051194,0.72384265,117100.0,117090.0,0.32328448]
[1754772051595,0.72384265,117100.0,117090.0,0.23790588]
[1754772051806,0.1435818,117090.0,117080.0,0.1707736]
[1754772052005,0.72384995,117090.0,117080.0,0.1707736]
[1754772053092,0.7522078,117090.0,117080.0,0.0853849]
[1754772053292,1.25546595,117090.0,117080.0,0.0893849]
[1754772053491,1.25546595,117090.0,117080.0,0.0923849]
[1754772054304,1.25546595,117090.0,117080.0,0.0903849]
[1754772054600,0.80928415,117090.0,117080.0,0.1875049]
[1754772054797,0.306026,117090.0,117080.0,0.1855049]
[1754772054997,0.278666,117090.0,117080.0,0.1312649]
[1754772055202,0.80928415,117090.0,117080.0,0.2253349]
[1754772055499,0.89466595,117090.0,117080.0,0.29216841]
[1754772056107,0.89466595,117090.0,117080.0,0.26949841]
[1754772056603,0.3914078,117090.0,117080.0,0.26949841]
[1754772056997,0.89466595,117090.0,117080.0,0.26949841]
[1754772057306,0.3914078,117090.0,117080.0,0.26949841]
[1754772057505,0.2205918,117090.0,117080.0,0.29216841]
[1754772057699,0.72384995,117090.0,117080.0,0.29216841]
[1754772059006,0.63846815,117090.0,117080.0,0.29216841]
[1754772060008,0.13521,117090.0,117080.0,0.29216841]
[1754772060205,0.89466605,117090.0,117080.0,0.06983351]
[1754772060501,0.0853891,117080.0,117070.0,0.02250696]
[1754772060710,0.2263064,117070.0,117060.0,0.27871066]
[1754772060904,1.09036455,117070.0,117060.0,0.27871066]
[1754772061504,1.09036455,117070.0,117060.0,0.28621618]
[1754772061898,1.09036455,117070.0,117060.0,0.28921618]
[1754772062099,1.09036455,117070.0,117060.0,0.31171637]
[1754772062302,1.09036455,117070.0,117060.0,0.3342349]
[1754772062502,1.09036455,117070.0,117060.0,0.3332349]
[1754772063211,1.09036455,117070.0,117060.0,0.2478336]
[1754772063404,1.09036455,117070.0,117050.0,0.0854113]
[1754772063405,0.4825442,117060.0,117050.0,0.0854113]
[1754772063603,0.4825442,117060.0,117040.0,0.23099671]
[1754772063604,0.2263213,117050.0,117040.0,0.31641501]
[1754772063808,0.72957945,117050.0,117040.0,0.31641501]
[1754772064202,0.72957945,117050.0,117040.0,0.45336501]
[1754772064400,0.72957945,117050.0,117040.0,0.2709713]
[1754772064604,0.72957945,117050.0,117040.0,0.2991313]
[1754772064807,0.2263213,117050.0,117040.0,0.3533713]
[1754772065006,0.2263213,117050.0,117040.0,0.3932013]
[1754772065311,0.2263213,117050.0,117040.0,0.3962013]
[1754772065513,0.2263213,117050.0,117040.0,0.08865191]
[1754772065514,1.09037945,117050.0,117040.0,0.08865191]
[1754772065810,1.26125145,117050.0,117040.0,0.003]
[1754772067317,1.26125145,117050.0,117040.0,0.06355104]
[1754772067506,1.26125145,117050.0,117040.0,0.003]
[1754772067702,0.1599087,117040.0,117030.0,0.29851436]
[1754772067906,1.13390685,117040.0,117030.0,0.34088436]
[1754772068608,1.13390685,117040.0,117030.0,0.28033332]
[1754772068903,1.13490685,117040.0,117030.0,0.28033332]
[1754772069214,1.56680685,117040.0,117030.0,0.35596653]
[1754772069709,1.56680685,117040.0,117030.0,0.37424728]
[1754772069907,2.37392685,117040.0,117030.0,0.29861407]
[1754772070105,2.37392685,117040.0,117030.0,0.12777247]
[1754772070310,2.37392685,117040.0,117030.0,0.21319847]
[1754772071624,2.37392685,117040.0,117030.0,0.25556847]
[1754772072303,2.54481485,117040.0,117030.0,0.06065075]
[1754772072507,0.159916,117030.0,117020.0,0.40238275]
[1754772072707,0.77311415,117030.0,117020.0,0.35931975]
[1754772073215,0.77311415,117030.0,117020.0,0.39863975]
[1754772073714,0.77311415,117030.0,117020.0,0.39963975]
[1754772074509,0.77311415,117030.0,117020.0,0.40063975]
[1754772075221,1.13391415,117030.0,117020.0,0.27588675]
[1754772076020,1.13391415,117030.0,117020.0,0.128803]
[1754772076212,1.13391415,117030.0,117020.0,0.244543]
[1754772076413,1.13391415,117030.0,117020.0,0.277133]
[1754772077619,1.13391415,117030.0,117020.0,0.276133]
[1754772080009,0.630656,117030.0,117020.0,0.276133]
[1754772080215,1.13391415,117030.0,117020.0,0.276133]
[1754772081221,1.13391415,117030.0,117020.0,0.1907]
[1754772081519,1.13391415,117030.0,117020.0,0.2435432]
[1754772081823,1.13391415,117030.0,117020.0,0.13039]
[1754772082021,1.13391415,117030.0,117020.0,0.04237]
[1754772082523,0.2698633,117020.0,117010.0,0.59311155]
[1754772082819,0.77312145,117020.0,117010.0,0.5324608]
[1754772083017,0.2698633,117020.0,117010.0,0.5324608]
[1754772083217,0.77312145,117020.0,117010.0,0.5324608]
[1754772083723,0.77312145,117020.0,117010.0,0.5334608]
[1754772083923,0.77312145,117020.0,117010.0,0.61009401]
[1754772085022,0.2698633,117020.0,117010.0,0.61009401]
[1754772085216,0.77312145,117020.0,117010.0,0.61009401]
[1754772088716,0.77390874,117020.0,117010.0,0.61009401]
[1754772088918,0.69492782,117020.0,117010.0,0.61009401]
[1754772090424,0.69492782,117020.0,117010.0,0.52465381]
[1754772091119,1.05572782,117020.0,117010.0,0.52465381]
[1754772091923,1.05572782,117020.0,117010.0,0.19642321]
[1754772092129,1.86308782,117020.0,117010.0,0.002]
[1754772092320,1.86308782,117020.0,117010.0,0.06295415]
[1754772092919,0.2698787,117000.0,116990.0,0.19442321]
[1754772093229,1.05574322,117000.0,116990.0,0.35178921]
[1754772093931,1.05574322,117000.0,116990.0,0.26633321]
[1754772094130,1.05574322,117000.0,116990.0,0.1907]
[1754772094321,1.05574322,117000.0,116990.0,0.26633321]
[1754772094522,1.05574322,117000.0,116990.0,0.1907]
[1754772094724,1.05594879,117000.0,116990.0,0.1907]
[1754772095030,1.1349674,117000.0,116990.0,0.276156]
[1754772095330,1.1349674,117000.0,116990.0,0.277156]
[1754772095533,1.1349674,117000.0,116990.0,0.35378921]
[1754772096530,1.1349674,117000.0,116990.0,0.26833321]
[1754772097236,0.6306787,117000.0,116990.0,0.35378921]
[1754772097537,1.1349674,117000.0,116990.0,0.35378921]
[1754772097836,1.1349674,117000.0,116990.0,0.26833321]
[1754772099135,1.1349674,117000.0,116990.0,0.278156]
[1754772099836,1.1349674,117000.0,116990.0,0.1927]
[1754772101136,1.1349674,117000.0,116990.0,0.26833321]
[1754772102529,1.1349674,117000.0,116990.0,0.1927]
[1754772103636,1.1349674,117000.0,116990.0,0.26833321]
[1754772104632,0.6306787,117000.0,116990.0,0.26833321]
[1754772104839,1.1349674,117000.0,116990.0,0.26833321]
[1754772106936,0.6306787,117000.0,116990.0,0.26833321]
[1754772107141,1.1349674,117000.0,116990.0,0.26833321]
[1754772110750,1.1349674,117000.0,116990.0,0.35378921]
[1754772111545,0.6306787,117000.0,116990.0,0.35378921]
[1754772111749,0.9888617,117010.0,117000.0,0.2660687]
[1754772111941,1.0280217,117010.0,117000.0,0.34233794]
[1754772112245,1.3888217,117010.0,117000.0,0.34233794]
[1754772112648,0.884533,117010.0,117000.0,0.34233794]
[1754772113040,1.3888217,117010.0,117000.0,0.34233794]
[1754772114648,0.884533,117010.0,117000.0,0.34233794]
[1754772114847,1.0280217,117010.0,117000.0,0.34233794]
[1754772115144,0.085456,116990.0,116980.0,0.00865108]
[1754772115446,0.1394733,116980.0,116970.0,0.2810091]
[1754772115641,1.004562,116980.0,116970.0,0.11007]
[1754772115845,1.004562,116980.0,116970.0,0.04033]
[1754772116243,0.139488,116960.0,116950.0,1.1017956]
[1754772116443,1.0045767,116960.0,116950.0,1.1017956]
[1754772116644,1.00484703,116960.0,116950.0,1.1017956]
[1754772116844,0.92578424,116960.0,116950.0,1.1421256]
[1754772117051,0.92578424,116960.0,116950.0,1.1723456]
[1754772118450,0.92578424,116960.0,116950.0,1.1733456]
[1754772118749,0.92578424,116960.0,116950.0,1.18309664]
[1754772120960,0.56498424,116960.0,116950.0,1.18309664]
[1754772121451,0.139488,116960.0,116950.0,1.18309664]
[1754772121653,0.56498424,116960.0,116950.0,1.18309664]
[1754772122658,0.92578424,116960.0,116950.0,1.18309664]
[1754772122954,0.92578424,116960.0,116950.0,1.09761214]
[1754772124254,0.92578424,116960.0,116950.0,1.17388767]
[1754772125053,0.92772424,116960.0,116950.0,1.17388767]
[1754772125859,0.92772424,116960.0,116950.0,1.09761214]
[1754772128059,0.502228,116960.0,116950.0,1.09761214]
[1754772128252,0.92772424,116960.0,116950.0,1.09761214]
[1754772129154,0.56692424,116960.0,116950.0,1.09761214]
[1754772129761,0.56692424,116960.0,116950.0,1.17384214]
[1754772130266,0.56692424,116960.0,116950.0,1.09761214]
[1754772130862,0.56692424,116960.0,116950.0,1.45841214]
[1754772131164,0.56692424,116960.0,116950.0,1.53463707]
[1754772139060,0.56692424,116960.0,116950.0,1.17383707]
[1754772139265,0.92772424,116960.0,116950.0,1.17383707]
[1754772139467,0.56692424,116960.0,116950.0,1.17383707]
[1754772140359,0.141428,116960.0,116950.0,1.17383707]
[1754772140561,0.141428,116960.0,116950.0,1.09761214]
[1754772140562,0.56692424,116960.0,116950.0,1.09761214]
[1754772141362,0.56692424,116960.0,116950.0,1.20442159]
[1754772143668,0.56692424,116960.0,116950.0,1.09761214]
[1754772149561,0.141428,116960.0,116950.0,1.2047853]
[1754772149763,0.56692424,116960.0,116950.0,1.2047853]
[1754772150371,0.56692424,116960.0,116950.0,1.09761214]
[1754772160469,0.56692424,116960.0,116950.0,1.08681214]
[1754772161675,0.56692424,116960.0,116950.0,0.27685214]
[1754772161877,0.56692424,116960.0,116950.0,1.08693214]
[1754772166075,0.56692424,116960.0,116950.0,1.19412176]
[1754772167668,0.56692424,116960.0,116950.0,1.08693214]
[1754772170180,0.56692424,116960.0,116950.0,1.08441214]
[1754772170481,0.141428,116960.0,116950.0,1.08441214]
[1754772170882,0.49288589,116960.0,116950.0,0.27685214]
[1754772171077,0.85368589,116960.0,116950.0,1.08413214]
[1754772171279,0.85224589,116960.0,116950.0,1.08413214]
[1754772172984,0.49144589,116960.0,116950.0,1.2374534]
[1754772175480,0.49144589,116960.0,116950.0,1.08413214]
[1754772176785,0.139988,116960.0,116950.0,1.08413214]
[1754772177085,0.49144589,116960.0,116950.0,1.08413214]
[1754772177789,0.139988,116960.0,116950.0,1.08413214]
[1754772178089,0.49144589,116960.0,116950.0,1.08413214]
[1754772178480,0.46945589,116960.0,116950.0,1.08413214]
[1754772178686,0.43693589,116960.0,116950.0,1.08413214]
[1754772178886,0.43693589,116960.0,116950.0,1.43559003]
[1754772179486,0.43693589,116960.0,116950.0,1.08413214]
[1754772179989,0.49000589,116960.0,116950.0,1.19132482]
[1754772180391,0.138548,116960.0,116950.0,1.19132482]
[1754772180590,0.49000589,116960.0,116950.0,1.19132482]
[1754772181392,0.49000589,116960.0,116950.0,1.08413214]
[1754772182089,0.60786119,116980.0,116970.0,0.03818]
[1754772182289,1.77571709,116990.0,116980.0,0.11072]
[1754772182487,0.96863709,116990.0,116980.0,0.61864119]
[1754772182686,1.02170709,116990.0,116980.0,0.2671833]
[1754772183187,0.66090709,116990.0,116980.0,0.2671833]
[1754772183692,0.66090709,116990.0,116980.0,0.34374287]
[1754772184281,0.66290709,116990.0,116980.0,0.34374287]